Cogmind - Beta 14 *** ADVENTURER MODE // 2024.11.23 @ 22:33:53 Player: Ro3ert Result: Destroyed by L-31 Rogue with Katana Performance ------------- Evolutions (1) 500 Regions Visited (3) 600 Robots Destroyed (63) 315 Value Destroyed (1554) 1554 Prototype IDs (0) 0 Alien Tech Used (0) 0 Bonus (70) 70 TOTAL SCORE: 3039 Bonus ------- High Alert Combat Kills 70 Cogmind --------- Core Integrity 0/400 Matter 241/300 Energy 125/125 System Corruption 0% Temperature Cool (0) Movement Flying (355) Ox4 Location -9/Materials Parts ------- > --- POWER (1) -------- Light Ion Engine > --- PROPULSION (2) --- VTOL Module > --- UTILITY (3) ------ Medium Storage Unit Improved Signal Interpreter Improved Targeting Computer > --- WEAPON (3) ------- Assault Cannon > --- INVENTORY (10) --- VTOL Module Improved Heat Sink Large Battery (200) High-capacity Battery (250) Terrain Scan Processor Melee Analysis Suite Hardened Medium Armor Plating Hacking Suite Peak State ------------ > --- POWER ------------ Light Ion Engine > --- PROPULSION ------- VTOL Module VTOL Module > --- UTILITY ---------- Medium Storage Unit Improved Signal Interpreter Improved Targeting Computer > --- WEAPON ----------- Particle Cannon Assault Cannon Assault Cannon > --- INVENTORY -------- Light Ion Engine Aluminum Leg Improved Heat Sink Large Battery High-capacity Battery Terrain Scan Processor Melee Analysis Suite Hardened Medium Armor Plating Hacking Suite Katana [Rating: 21] Favorites ----------- Power Light Ion Engine Engine Light Ion Engine Propulsion Aluminum Leg Leg Aluminum Leg Wheel Wheel Flight Unit VTOL Module Utility Medium Storage Unit Device Seismic Detector Storage Medium Storage Unit Processor Signal Interpreter Protection Light Armor Plating Weapon Particle Gun Energy Gun Particle Gun Energy Cannon Light EM Pulse Cannon Ballistic Gun Shotgun Ballistic Cannon Assault Cannon Slashing Weapon Katana Special Melee Weapon Datajack Build | -11 -10 -10 -9 ------- Run | Yrd Mat Min Mat Slots Evolved 2 | . . . 2 Power . | . . . . Propulsion . | . . . . Utility 1 | . . . 1 Weapon 1 | . . . 1 Parts Attached 37 | 7 3 3 24 Power 4 | 1 . . 3 Engine 4 | 1 . . 3 Core . | . . . . Reactor . | . . . . Propulsion 10 | 3 . . 7 Treads . | . . . . Leg 7 | 2 . . 5 Wheel 1 | 1 . . . Hover . | . . . . Flight 2 | . . . 2 Utility 8 | 1 3 . 4 Device 1 | . 1 . . Storage 2 | 1 1 . . Processor 3 | . . . 3 Hackware . | . . . . Protection 2 | . 1 . 1 Artifact . | . . . . Weapon 15 | 2 . 3 10 Energy Gun 6 | 1 . 3 2 Energy Cannon 2 | . . . 2 Ballistic Gun 3 | 1 . . 2 Ballistic Cannon 2 | . . . 2 Launcher . | . . . . Special Weapon . | . . . . Impact Weapon . | . . . . Slashing Weapon 1 | . . . 1 Piercing Weapon . | . . . . Special Melee Weapon 1 | . . . 1 Unidentified Prototypes . | . . . . Parts Lost 17 | . 1 . 16 Power 2 | . . . 2 Propulsion 5 | . . . 5 Utility 3 | . 1 . 2 Weapon 7 | . . . 7 Highest Loss Streak 3 | . 1 . 3 To Critical Strikes . | . . . . Average Slot Usage (%) 96 | . 99 100 95 Engine 12 | . 14 14 10 Leg 22 | . 28 28 18 Storage 12 | . 14 14 11 Processor 11 | . . . 17 Protection 6 | . 6 14 3 Energy Gun 19 | . 14 26 16 Energy Cannon 4 | . . . 6 Ballistic Gun 5 | . 14 1 4 Ballistic Cannon 1 | . . . 2 Peak Build Rating 21 | 6 7 9 21 Average Rating 12 | 3 6 8 14 On Entrance 5 | . 6 7 9 Naked Turns . | . . . . Heaviest Build 28 | 12 20 21 28 Greatest Support 23 | 20 20 20 23 Greatest Overweight (x) 4 | . . 1 4 Average Overweight (x) . | . . . 1 Largest Inventory Capacity 10 | 8 10 10 10 Average Capacity 9 | 6 8 10 10 Most Carried 10 | 5 8 10 10 Average Carried 8 | 2 5 9 8 Final Capacity 10 | 8 10 10 10 Final Carried 10 | 2 7 10 8 Class Distribution -------------------- 47% | Mutant 23% | Scavenger-Gunner 19% | Scavenger-Tank 6% | Gunner Dominant Class ---------------- Mutant | -10/Materials Mutant | -10/Mines Scavenger-Gunner | -9/Materials Resources | -11 -10 -10 -9 ----------- Run | Yrd Mat Min Mat Matter Collected 809 | 223 131 55 400 Remotely . | . . . . Salvage Created 1893 | . 287 287 1319 Parts 135 | . 22 17 96 Haulers Intercepted . | . . . . Recyclers Shooed . | . . . . Parts Field Recycled . | . . . . Retrieved Matter . | . . . . Parts Self-Destructed . | . . . . Prevented . | . . . . Kills | -11 -10 -10 -9 ------- Run | Yrd Mat Min Mat Combat Hostiles Destroyed 49 | . 9 6 34 Guns 36 | . 9 6 21 Cannons 13 | . . . 13 Classes Destroyed 9 | . 4 1 4 Worker 4 | . 1 . 3 Builder 2 | . . . 2 Tunneler 1 | . . . 1 Operator 2 | . . . 2 Watcher 5 | . 1 . 4 Swarmer 16 | . 5 . 11 Grunt 25 | . 4 4 17 Duelist 1 | . . . 1 Sentry 7 | . . 2 5 Best Kill Streak 7 | . 6 2 7 Combat Bots Only 6 | . 6 2 6 Max Kills in Single Turn 2 | . 2 2 2 Gunslinging 1 | . 1 1 1 Exploded . | . . . . Melee . | . . . . Uniques/NPCs Destroyed . | . . . . Combat | -11 -10 -10 -9 -------- Run | Yrd Mat Min Mat Hostile Shots Fired 308 | . 46 23 239 Missed 95 | . 14 5 76 Damage Taken 2178 | . 244 211 1723 Core 486 | . 37 35 414 Absorbed by Shields . | . . . . Ignored by Resistances 651 | . 76 61 514 Core Remaining (%) 85 | 100 . 71 . Volleys Fired 112 | . 23 12 77 Largest 3 | . 2 2 3 Hottest 180 | . 70 115 180 Shots Fired 250 | . 45 22 183 Gun 184 | . 45 22 117 Cannon 66 | . . . 66 Launcher . | . . . . Special . | . . . . Kinetic 88 | . 23 5 60 Thermal 132 | . 22 17 93 Explosive . | . . . . Electromagnetic 30 | . . . 30 Robot Hit Streak 28 | . 11 8 28 Robot Miss Streak 3 | . 1 1 3 Penetration Max . | . . . . Secondary Targets 8 | . 2 2 4 Max Gunslinging Chain 1 | . 1 1 1 Shots Hit Robots 183 | . 34 18 131 Core Hits 96 | . 16 13 67 Critical Kills . | . . . . Critical Parts Destroyed 1 | . 1 . . Critical Strikes 6 | . 3 1 2 Burn 4 | . 2 1 1 Destroy 1 | . 1 . . Blast 1 | . . . 1 Melee Attacks . | . . . . Impact . | . . . . Slashing . | . . . . Piercing . | . . . . Sneak Attacks . | . . . . Combat Hostiles . | . . . . Follow-up Attacks . | . . . . Damage Inflicted 3185 | . 417 242 2526 Guns 2106 | . 417 242 1447 Cannons 1053 | . . . 1053 Explosions 26 | . . . 26 Melee . | . . . . Ramming . | . . . . Kinetic 1158 | . 232 48 878 Thermal 1431 | . 185 194 1052 Explosive . | . . . . Electromagnetic 596 | . . . 596 Impact . | . . . . Slashing . | . . . . Piercing . | . . . . Highest Corruption . | . . . . Average Corruption . | . . . . Corruption Purged . | . . . . Corruption Blocked . | . . . . Overload Shots . | . . . . Overflow Damage 1 | . . . 1 Projectiles 1 | . . . 1 Explosions . | . . . . Melee . | . . . . Knockbacks 3 | . . . 3 Impact . | . . . . Kinetic 3 | . . . 3 Secondary . | . . . . Self-Inflicted Damage . | . . . . Shots . | . . . . Rammed . | . . . . Targets Rammed . | . . . . Kicked . | . . . . Crushed . | . . . . Highest Temperature 512 | . 217 283 512 Average Temperature 110 | . 58 98 123 Received Heat Transfer 867 | . 120 117 630 Effects 8 | . . . 8 Shutdowns 1 | . . . 1 Energy Bleed 1 | . . . 1 Interference 5 | . . . 5 Matter Decay 1 | . . . 1 Siege Activations . | . . . . Robots Corrupted . | . . . . Combat Hostiles . | . . . . Parts Fried 1 | . . . 1 Impact Corruptions . | . . . . Robots Melted . | . . . . Combat Hostiles . | . . . . Parts Melted 8 | . 2 3 3 Heat Transferred 3898 | . 703 629 2566 Parts Sabotaged . | . . . . Parts Stolen . | . . . . Parts Stripped . | . . . . Power Chain Reactions 1 | . . . 1 Alert | -11 -10 -10 -9 ------- Run | Yrd Mat Min Mat Peak Influence 605 | . 272 189 605 Initial 89 | . . 89 18 Average 208 | . 171 105 265 Maximum Alert Level 2 | . 1 . 2 Low Security (%) 62 | 100 48 100 47 Level 1 14 | . 51 . 13 Level 2 23 | . . . 38 Level 3 . | . . . . Level 4 . | . . . . Level 5 . | . . . . High Security . | . . . . Max Security . | . . . . Squads Dispatched 6 | . 1 . 5 Investigation 3 | . 1 . 2 Extermination . | . . . . Reinforcement 2 | . . . 2 Assault 1 | . . . 1 Garrison . | . . . . Intercept . | . . . . Searches Triggered . | . . . . Construction Impeded . | . . . . Haulers Reinforced . | . . . . Active Scanning Responses . | . . . . Cargo Convoy Interrupts . | . . . . Stealth | -11 -10 -10 -9 --------- Run | Yrd Mat Min Mat Distress Signals 1 | . 1 . . Communications Jammed . | . . . . Distress Signals . | . . . . Times Spotted 73 | . 13 6 54 Peak Tracking Total 6 | . 6 2 5 Tactical Retreats 4 | . 2 . 2 Traps | -11 -10 -10 -9 ------- Run | Yrd Mat Min Mat Traps Triggered 1 | . . . 1 Indirectly . | . . . . Trap Hack Attempts 14 | . . . 14 Triggered . | . . . . Disarmed . | . . . . Reprogrammed . | . . . . Reused . | . . . . Traps Extracted . | . . . . Installed . | . . . . Triggered . | . . . . Machines | -11 -10 -10 -9 ---------- Run | Yrd Mat Min Mat Machines Disabled 2 | . . 1 1 Max in Single Turn 1 | . . 1 1 Machines Repaired . | . . . . Machines Dismantled . | . . . . Machines Sabotaged . | . . . . Overloaded Fab Kills . | . . . . Hacking | -11 -10 -10 -9 --------- Run | Yrd Mat Min Mat Machines Accessed 5 | . 1 . 4 Terminals 5 | . 1 . 4 Fabricators . | . . . . Repair Stations . | . . . . Recycling Units . | . . . . Scanalyzers . | . . . . Garrison Access . | . . . . Total Hacks 19 | . 3 . 16 Successful 9 | . 3 . 6 Failed 10 | . . . 10 Catastrophic 2 | . . . 2 Database Lockouts . | . . . . Manual 2 | . . . 2 Terminals 19 | . 3 . 16 Fabricators . | . . . . Repair Stations . | . . . . Recycling Units . | . . . . Scanalyzers . | . . . . Garrison Access . | . . . . Terminal Hacks 9 | . 3 . 6 Record 2 | . . . 2 Robot Analysis 1 | . 1 . . Alert Level 1 | . 1 . . Locate Traps 1 | . . . 1 Maintenance Status 1 | . . . 1 Zone Layout 3 | . 1 . 2 Fabricator Hacks . | . . . . Repair Station Hacks . | . . . . Recycling Unit Hacks . | . . . . Scanalyzer . | . . . . Garrison Access Hacks . | . . . . Unauthorized Hacks . | . . . . Terminals . | . . . . Fabricators . | . . . . Repair Stations . | . . . . Recycling Units . | . . . . Scanalyzers . | . . . . Garrison Access . | . . . . Data Cores Recovered 1 | . . . 1 Used . | . . . . Hacking Detections 5 | . 1 . 4 Full Trace Events 2 | . 1 . 1 Feedback Events . | . . . . Feedback Blocked . | . . . . Robot Schematics Acquired . | . . . . Robots Built . | . . . . Authchips . | . . . . Time . | . . . . Total Robot Build Rating . | . . . . Part Schematics Acquired . | . . . . Parts Built . | . . . . Authchips . | . . . . Time . | . . . . Total Part Build Rating . | . . . . Parts Repaired . | . . . . Time . | . . . . Parts Recycled . | . . . . Recycled Matter . | . . . . Retrieved Matter . | . . . . Retrieved Components . | . . . . Parts Scanalyzed . | . . . . Part Schematics Acquired . | . . . . Parts Damaged . | . . . . Bothacking | -11 -10 -10 -9 ------------ Run | Yrd Mat Min Mat Used RIF Installer . | . . . . Robots Hacked . | . . . . Non-combat . | . . . . Combat . | . . . . Robot Hacks Applied . | . . . . Relay Couplers Released . | . . . . Fabnet Peak Effective % . | . . . . Robots Rewired . | . . . . Allies Hacked . | . . . . Hacks Repelled . | . . . . Allies | -11 -10 -10 -9 -------- Run | Yrd Mat Min Mat Total Allies . | . . . . Largest Group . | . . . . Highest-Rated Group . | . . . . Highest-Rated Ally . | . . . . Total Orders . | . . . . Ally Attacks . | . . . . Total Damage . | . . . . Kills . | . . . . Allies Corrupted . | . . . . Allies Melted . | . . . . Intel | -11 -10 -10 -9 ------- Run | Yrd Mat Min Mat Robot Analysis Total 1 | . 1 . . Derelict Logs Recovered 1 | . . 1 . Drone Launches . | . . . . Drone Recoveries . | . . . . Exploration | -11 -10 -10 -9 ------------- Run | Yrd Mat Min Mat Turns Passed 2836 | 55 333 728 1720 Spaces Moved 1324 | 41 207 378 698 Core 17 | 17 . . . Treads . | . . . . Legs 1283 | 22 207 378 676 Wheels 2 | 2 . . . Hover . | . . . . Flight 22 | . . . 22 Fastest Speed 50 | 50 120 120 120 Average Speed 179 | 89 120 179 202 Slowest Speed 355 | 120 120 190 355 Overloaded Moves . | . . . . Propulsion Burnouts . | . . . . Robots Hopped . | . . . . Cave-ins Triggered . | . . . . Exploration Rate (%) 46 | 4 32 82 67 Regions Visited 3 Branch Regions 1 Pre-discovered Areas . | . . . . Known Exits Taken . | . . . . Unknown Exits Taken 3 | 1 1 1 . Scrap Searched . | . . . . Spaces Dug . | . . . . Terrain Destroyed 5 | . . . 5 Melee . | . . . . Projectile 2 | . . . 2 AOE 3 | . . . 3 Terrain Rammed . | . . . . Walls Destroyed . | . . . . Machines Disabled . | . . . . Actions | -11 -10 -10 -9 --------- Run | Yrd Mat Min Mat Total 1568 | 58 247 409 854 Wait 22 | 3 2 7 10 Move 1321 | 40 206 377 698 Hop . | . . . . Pick Up 44 | 6 10 6 22 Fast Attach 7 | 4 . . 3 Attach 21 | 3 2 . 16 Detach . | . . . . Swap 9 | . 1 3 5 Drop 18 | 2 3 4 9 Fire 112 | . 23 12 77 Melee . | . . . . Ram . | . . . . Kick . | . . . . Crush . | . . . . Escape Stasis . | . . . . Rewire . | . . . . Trap 14 | . . . 14 Miscellaneous . | . . . . Route ------- -11/Scrapyard -10/Materials -10/Mines -9/Materials (discovered 1 exit: *Min) History --------- Turn | Location | Event 3 | -11/Scrapyard | Discovered new exit (range 15) 56 | -11/Scrapyard | Entered Materials 307 | -10/Materials | Build established: Mutant 308 | -10/Materials | Discovered new exit (range 9) 389 | -10/Materials | Entered Mines 449 | -10/Mines | Met a Derelict bent on vengeance 802 | -10/Mines | Learned Materials stockpile data 1104 | -10/Mines | Discovered new exit (range 8) 1117 | -10/Mines | Entered Materials 1117 | -9/Materials | Evolved 2 slots: Utility x1, Weapon x1 1407 | -9/Materials | Build established: Scavenger-Tank 1750 | -9/Materials | Lost 3 parts (1n1u1w) 2016 | -9/Materials | Discovered new exit (range 13) 2062 | -9/Materials | Identified exit to Mines 2394 | -9/Materials | Core integrity fell below 50% 2562 | -9/Materials | Lost 3 parts (1n2w) 2717 | -9/Materials | First assault squad dispatched 2809 | -9/Materials | Core integrity fell below 20% 2837 | -9/Materials | Destroyed by L-31 Rogue with Katana Last Messages --------------- G-47 Trooper unfolds itself. L-31 Rogue unfolds itself. G-34 Mercenary unfolds itself. I-25 Savior unfolds itself. K-01 Serf cleans the Scanalyzer. Lgt. Ion Engine destroyed. K-01 Serf cleans the Scanalyzer. K-01 Serf collects debris. Acquired 37 matter. K-01 Serf cleans the Scanalyzer. G-34 Mercenary knocked back. Particle Cannon destroyed. G-34 Mercenary destroyed. Assault Cannon severed. Katana severed. K-01 Serf collects debris. Acquired 5 matter. K-01 Serf collects debris. VTOL Module destroyed. K-01 Serf collects debris. Map ----- +----------------------------------------------------+ | | | | | ?????????????????????????????????????????????????? | | ?????????????????????????????????????????????????? | | ????###########??????????????????????????????????? | | ????# #??????????????????????????????????? | | ????# #?????????????????????????########?? | | ????# #?????????????????????????#]=] #?? | | ????# !! #?????????????????????????#]=] #?? | | ????# !! #?????????????????????????#]] #?? | | ????# =#?????????????????????????# #?? | | ????# =#???????????????########### #?? | | ????# #???????????????# # #?? | | ????#####+#####???##??????????# """ "" ####+##### | | ####### #?????# ??????????# """ ""S # | | #?????# ?????????# """ "" + | | [ %| #?????# ?????????# # | | #?????# ????????# ! ! ######## | | ####### #?????# ????????# !!![* ##[ # | | ??????#######??????==] ???????# !!=!!] ## !=!# | | ????????????????????] ???????######%##### ==!# | | ????????????????????? ???????????###???# !# | | ??????????[=????#######k#######?###??????# # | | ??????????? ???# /###;########*"" %# | | ???????????# #### ]^^ l %%]g i + """ # | | ???????????# ^^]^ @lTk=############ S" # | | ???????????# ]]] #??????????# %% # | | ???????????# ]] #??###########/### | | ???????????# #### | | ???????????+ % | | ???????????# ######### % % | | ???????????# ### ##???????##+##### ###### | | ???????????# ###+#######??# # ###### | | ???????????# # ! #??# # % # | | ???????????# # !== #??# "% %+ | | ???????????# / !==!"T" #??#![[ #% *# " " | | ???????????###+## # ==*%! #?#![[ # # "R" | | ????????????????# ############?#![[ ?# # """ | | ????????????????# # #???######?# # | | ????????????????# # """ #??????????# ###### | | ????????????????# # """ #??????????# "#???? | | ????????????????# # """ #??????????# ##???? | | ????????????????# # #??????????# !#????? | | ????????????????# # """ #??????????# !=#??### | | ????????????????# # Y" #??#######?# !%#? | | ????????????????# *%/ """ #?? ?# =|#?""" | | ????????????????# =#[% #??? """ # # """ | | ?????????????#### ### ######???""""" # # """ | | ?????????????#" ####????????""""" + + | | ?????????????#"" #???????????""""" # # """ | +----------------------------------------------------+ Best States ------------- Heat Dissipation 28 Energy Generation 12 Energy Capacity 265 Matter Stores 300 Matter Capacity 300 Sight Range 16 Terrain Scan Density 10 Armor Coverage 300 Resistance: KI 20 Resistance: TH 20 Resistance: EX 20 Resistance: EM 20 Resistance: I 20 Resistance: S 20 Resistance: P 20 Evasion (%) 55 Targeting Accuracy 6 Offensive Hacking 10 Item Schematics ----------------- None Robot Schematics ------------------ None Fabricated ------------ Nothing Alien Tech Used ----------------- None Achievements -------------- Significant Disruption Challenges ------------ None Game ------ Seed LongswordHybridDoomcannon Manual? 0 Play Time 00:27:22 Cumulative 10.5 hours Start 2024.11.22 @ 17:14:35 End 2024.11.23 @ 22:33:53 Sessions 5 Manual Loads 0 Difficulty Adventurer Special Mode None Game No. 18 Rogue 0 Adventurer 18 Explorer 0 Win Type - Total 0 Types 0/0/0/0/0/0/0/0/0 Lore% 12 Gallery% 20 Achievement% 16 Wizard Run 0 Options --------- Layout 1 ASCII 0 Keyboard 0 Movement Mouse Keybinds 0 Fullscreen 1 Font 24/X11 Map View 50x35 Zoom Use 0% Tactical HUD 0 Map Filters NONE Filters NONE Steam 1 RUN: 72adf959-09d6-433a-9830-98fab592c0e8